fUSD/lending_fUSD_20240627
["ID","MTS","AMOUNT","RATE_DAILY","PERIOD"]
[330467983,1719459043432,-151.0,0.00017444,2]
[330467984,1719459043443,-151.0,0.00017444,2]
[330467985,1719459043453,-151.0,0.00017444,2]
[330467986,1719459043466,-151.0,0.00017444,2]
[330467987,1719459043477,-151.0,0.00017444,2]
[330467988,1719459043487,-250.292048,0.00017444,2]
[330467989,1719459043498,-250.292048,0.00017444,2]
[330467990,1719459043508,-164.893614,0.00017444,2]
[330467991,1719459043519,-151.0,0.00017444,2]
[330467992,1719459043530,-151.0,0.00017444,2]
[330467993,1719459043541,-151.0,0.00017444,2]
[330467994,1719459043552,-6908.182887,0.00017444,2]
[330467997,1719459043563,-6908.182887,0.00017444,2]
[330468000,1719459043574,-288.764291,0.00017444,2]
[330468002,1719459043584,-255.57918,0.00017444,2]
[330468005,1719459043595,-255.57918,0.00017444,2]
[330468008,1719459043607,-151.0,0.00017444,2]
[330468011,1719459043618,-834.697105,0.00017444,2]
[330468013,1719459043629,-151.0,0.00017456,2]
[330468015,1719459043639,-151.0,0.00017456,2]
[330468017,1719459043650,-291.532333,0.00017456,2]
[330468018,1719459043660,-815.366314,0.00017456,2]
[330468019,1719459043671,-151.0,0.00017456,2]
[330468020,1719459043682,-164.549662,0.00017456,2]
[330468021,1719459043692,-164.549662,0.00017456,2]
[330468022,1719459043703,-151.0,0.00017456,2]
[330468023,1719459043716,-10061.66965734,0.0001749,2]
[330468024,1719459043726,-2827.54806632,0.0001749,2]
[330468025,1719459045059,-2297.67158592,0.0001749,2]
[330468026,1719459045072,-667.34675804,0.0001749,2]
[330468027,1719459045137,-564.91481988,0.0001749,2]
[330468028,1719459045149,-847.03999566,0.0001749,2]
[330468088,1719460232441,-1891.95350454,0.00011097,2]
[330468089,1719460232458,-5656.35932623,0.00011097,2]
[330468090,1719460232511,-665.52940007,0.00011097,2]
[330468091,1719460232521,-530.92308238,0.00011098,2]
[330468092,1719460232530,-155.0,0.00011098,2]
[330468093,1719460232539,-266.17183068,0.00011098,2]
[330468094,1719460232548,-155.37791216,0.00011098,2]
[330468095,1719460232557,-226.97665617,0.00011098,2]
[330468096,1719460232567,-424.24,0.00012454,2]
[330468097,1719460232576,-250.0,0.00013644,2]
[330468098,1719460232585,-400.0,0.000138,5]
[330468099,1719460232595,-1517.6786,0.000139,2]
[330468100,1719460232604,-900.0,0.000139,5]
[330468101,1719460232613,-39677.39413669,0.000139,2]
[330468102,1719460232624,-16272.9283354,0.000139,2]
[330468103,1719460232639,-979.38,0.000139,2]
[330468104,1719460232651,-1898.3477175,0.000139,2]
[330468105,1719460232666,-23881.83721641,0.000139,2]
[330468113,1719460238892,-10065.874494,0.000139,2]
[330468114,1719460238902,-150.0,0.0001392,2]
[330468115,1719460238912,-4606.59665203,0.00013921,2]
[330468116,1719460238921,-304.31918606,0.00013921,2]
[330468117,1719460238930,-326.99899241,0.00013921,2]
[330468118,1719460238940,-5030.83482867,0.00013963,2]
[330468119,1719460238951,-623.24,0.0001399,3]
[330468120,1719460238962,-175.20875585,0.0001399,2]
[330468121,1719460238972,-634.50582798,0.00013997,2]
[330468122,1719460238982,-47181.05269823,0.00014,2]
[330468123,1719460239032,-722.01129702,0.00014,2]
[330468124,1719460239044,-597.24,0.00014,2]
[330468126,1719460240442,-49980.43770584,0.00014,2]
[330468127,1719460240657,-48233.75066517,0.00014,2]
[330468128,1719460240801,-43476.54354448,0.00014,2]
[330468129,1719460240813,-646.46984113,0.00014,2]
[330468130,1719460240825,-799.04132125,0.00014,2]
[330468131,1719460240836,-2445.835,0.00014,2]
[330468132,1719460240848,-4254.11158289,0.00014,2]
[330468133,1719460243441,-1164.83372952,0.00014,2]
[330468134,1719460243453,-1767.73070651,0.00014,2]
[330468135,1719460243569,-2696.82451154,0.00014,2]
[330468136,1719460243583,-9371.0539542,0.00014,2]
[330468137,1719460243690,-1253055.92076728,0.00014,2]
[330468138,1719460243699,-175.64,0.00014021,2]
[330468139,1719460243709,-663.13643836,0.00014063,2]
[330468140,1719460243718,-663.13643833,0.00014272,2]
[330468141,1719460243727,-663.13643833,0.00014482,2]
[330468142,1719460243736,-663.13643833,0.00014691,2]
[330468143,1719460243745,-269.67300913,0.00014699,2]
[330468144,1719460243754,-424.24,0.00014718,2]
[330468145,1719460243764,-1300.0,0.000148,5]
[330468146,1719460243773,-4606.59665201,0.00014808,2]
[330468147,1719460243782,-5030.83482867,0.00014845,2]
[330468148,1719460243790,-1273.24889583,0.00014899,2]
[330468149,1719460243799,-1000.0,0.00014899,2]
[330468150,1719460243809,-663.13643833,0.000149,2]
[330468151,1719460243818,-1800.0,0.000149,5]
[330468152,1719460243827,-1000.0,0.00014969,2]
[330468153,1719460243836,-24630.6982386,0.00015,2]
[330468154,1719460243845,-39641.31165453,0.00015,2]
[330468164,1719460246469,-983.86902031,0.00015,2]
[330468165,1719460246672,-1011.6724071,0.00015,2]
[330468166,1719460247475,-79686.50316065,0.00015,2]
[330468167,1719460247497,-1830.2241266,0.00015,2]
[330468168,1719460247511,-2211.876,0.00015,2]
[330468169,1719460247535,-5929.50089679,0.00015,2]
[330468170,1719460247594,-2055.95637963,0.00015,2]
[330468171,1719460247615,-1232.59825842,0.00015,2]
[330468172,1719460247636,-585.22668101,0.00015,2]
[330468183,1719461432548,-419.36,0.00011331,2]
[330468184,1719461432558,-169.38678369,0.0001276,2]
[330468185,1719461432570,-159.03321631,0.0001276,2]
[330468186,1719461432579,-344.93,0.00012845,2]
[330468187,1719461432589,-250.0,0.00012869,2]
[330468188,1719461432598,-1255.21290225,0.00012894,2]
[330468189,1719461432635,-9.78709775,0.00012894,2]
[330468190,1719461432644,-1841.47,0.00012895,2]
[330468191,1719461432654,-727.87314513,0.00012921,2]
[330468192,1719461432668,-1312.29232162,0.00012921,2]
[330468193,1719461432774,-98.81453325,0.00012921,2]
[330468194,1719461432784,-250.0,0.00012934,2]
[330468195,1719461432794,-93.88046675,0.00012962,2]
[330468196,1719461432833,-7765.65953325,0.00012962,2]
[330468197,1719461432843,-200.0,0.00013041,2]
[330468198,1719461432852,-918.58,0.00013119,2]
[330468199,1719461432862,-1106.4,0.00013136,2]
[330468200,1719461432871,-150.0,0.00013273,2]
[330468201,1719461432881,-419.36,0.00013595,2]
[330468202,1719461432890,-170.36,0.00013609,2]
[330468203,1719461432900,-184.74,0.00013644,2]
[330468204,1719461432909,-4929.18,0.00013644,2]
[330468205,1719461432919,-150.0,0.00013698,2]
[330468206,1719461432928,-2653.25,0.00013699,2]
[330468207,1719461432937,-662.26,0.00013699,2]
[330468208,1719461432947,-1500.0,0.00013699,5]
[330468209,1719461432957,-161.19035566,0.000137,2]
[330468210,1719461432967,-170.36,0.00013727,2]
[330468211,1719461432977,-15907.0395,0.000138,2]
[330468212,1719461432986,-232.68818604,0.00013802,2]
[330468213,1719461432996,-8395.09,0.00013821,2]
[330468214,1719461433005,-170.36,0.00013846,2]
[330468215,1719461433014,-161.19035565,0.00013858,2]
[330468216,1719461433024,-2500.0,0.00013899,2]
[330468217,1719461433034,-474.09982959,0.00013899,2]
[330468218,1719461433044,-663.13643836,0.00013916,2]
[330468219,1719461433054,-5632.78247675,0.00013916,2]
[330468220,1719461433064,-3701.42281704,0.00013916,2]
[330468221,1719461433073,-326.99899239,0.00013916,2]
[330468222,1719461433083,-170.36,0.00013964,2]
[330468223,1719461433093,-222735.96667976,0.00013999,2]
[330468224,1719461433117,-538.30041497,0.00013999,2]
[330468225,1719461433128,-670.78694448,0.00013999,2]
[330468226,1719461433140,-1035.96793328,0.00013999,2]
[330468227,1719461433165,-4943.83845254,0.00013999,2]
[330468228,1719461433181,-30775.0,0.00013999,2]
[330468229,1719461433193,-389.00967572,0.00013999,2]
[330468238,1719461437585,-280.65263567,0.00013999,2]
[330468245,1719461437643,-20579.65968483,0.00013999,2]
[330468247,1719461437654,-1242.44162706,0.00013999,2]
[330468258,1719461437758,-959.26636,0.00013999,2]
[330468265,1719461437815,-1624.56817508,0.00013999,2]
[330468270,1719461439824,-33625.82427313,0.00013999,2]
[330468271,1719461439837,-38831.90504504,0.00013999,2]
[330468272,1719461439848,-45796.80648819,0.00013999,2]
[330468273,1719461439860,-20745.12160363,0.00013999,2]
[330468274,1719461439998,-3527.03157544,0.00013999,2]
[330468275,1719461440049,-1048.582763,0.00013999,2]
[330468276,1719461440061,-17774.15880692,0.00013999,2]
[330468277,1719461440219,-2368.07297636,0.00013999,2]
[330468283,1719461443418,-2345.61948667,0.00013999,2]
[330468284,1719461443664,-95954.05107211,0.00013999,2]
[330468285,1719461443679,-2791.42364177,0.00013999,2]
[330468286,1719461443688,-2204.77371681,0.00013999,2]
[330468287,1719461443697,-161.19035565,0.00014016,2]
[330468288,1719461443708,-170.36,0.00014082,2]
[330468289,1719461443718,-200.0,0.00014116,2]
[330468290,1719461443727,-23900.0,0.00014118,2]
[330468291,1719461443736,-7619.19,0.00014118,2]
[330468292,1719461443746,-663.13643833,0.00014162,2]
[330468293,1719461443758,-170.36,0.000142,2]
[330468294,1719461443768,-170.36,0.00014318,2]
[330468295,1719461443777,-663.13643833,0.00014408,2]
[330468296,1719461443787,-2471.22,0.00014487,2]
[330468297,1719461443796,-226.97665617,0.00014499,2]
[330468298,1719461443805,-1000.0,0.00014536,2]
[330468299,1719461443817,-10000.0,0.00014536,2]
[330468300,1719461443828,-663.13643833,0.00014654,2]
[330468301,1719461443838,-234.52,0.00014786,2]
[330468302,1719461443848,-5632.78247668,0.00014803,2]
[330468303,1719461443857,-3701.42281696,0.00014803,2]
[330468304,1719461443876,-155.94167811,0.000149,2]
[330468305,1719461443887,-1527.10500802,0.000149,2]
[330468306,1719461443896,-215.73840732,0.000149,2]
[330468307,1719461443906,-663.13643833,0.000149,2]
[330468308,1719461443916,-173.29,0.00014972,2]
[330468309,1719461443925,-110474.88482651,0.00015,2]
[330468310,1719461443954,-1113.8701207,0.00015,2]
[330468311,1719461443973,-885.5554466,0.00015,2]
[330468312,1719461444008,-298.93134934,0.00015,2]
[330468313,1719461444070,-3872.57133565,0.00015,2]
[330468314,1719461444154,-627.546,0.00015,2]
[330468342,1719461445874,-31858.479336,0.00015,2]
[330468358,1719461446111,-3950.1612,0.00011231,2]
[330468359,1719461446121,-12160.42675862,0.00015,2]
[330468372,1719462631906,-628.42,0.00011097,2]
[330468373,1719462631917,-446.45853724,0.00011097,2]
[330468374,1719462631978,-351.89855854,0.00011097,2]
[330468375,1719462631990,-7343.88972904,0.00011097,2]
[330468376,1719462632055,-248.96556877,0.00011097,2]
[330468377,1719462632065,-414.92,0.00012041,2]
[330468378,1719462632075,-130.96701262,0.00012302,2]
[330468379,1719462632086,-559.13514339,0.00012302,2]
[330468380,1719462632097,-510.45821137,0.00013128,2]
[330468381,1719462632108,-761.95,0.00013699,2]
[330468382,1719462632117,-347.89661284,0.00013736,2]
[330468383,1719462632127,-250.0,0.00013754,2]
[330468384,1719462632138,-265.60314288,0.00013802,2]
[330468385,1719462632150,-0.5686878,0.00013802,2]
[330468386,1719462632159,-929.18,0.00013959,2]
[330468387,1719462632168,-1162.36,0.0001408,2]
[330468388,1719462632178,-725.18,0.0001408,2]
[330468389,1719462632187,-190.50189593,0.00014099,2]
[330468390,1719462632197,-168.87,0.00014247,2]
[330468391,1719462632206,-173.29,0.00014287,2]
[330468392,1719462632216,-200.0,0.00014294,2]
[330468393,1719462632226,-1461.56,0.00014294,2]
[330468394,1719462632236,-414.92,0.00014305,2]
[330468395,1719462632249,-160.0,0.00014344,2]
[330468396,1719462632259,-12575.46615057,0.00014409,2]
[330468397,1719462632272,-29560.56631577,0.00014409,2]
[330468398,1719462632284,-11684.96753366,0.00014409,2]
[330468399,1719462632294,-1000.0,0.00014518,2]
[330468400,1719462632304,-1011.64476456,0.00014621,2]
[330468401,1719462632314,-1000.0,0.000148,2]
[330468402,1719462632324,-4881.45272462,0.000148,2]
[330468403,1719462632333,-2961.13825364,0.000148,2]
[330468404,1719462632342,-250.0,0.00014831,2]
[330468405,1719462632351,-155.69120155,0.000149,2]
[330468406,1719462632360,-39262.1701,0.000149,2]
[330468407,1719462632369,-87465.6041,0.000149,2]
[330468408,1719462632378,-1399.84625737,0.000149,2]
[330468409,1719462632387,-172.59072584,0.000149,2]
[330468410,1719462632396,-13217.769,0.000149,2]
[330468411,1719462632406,-637.11815964,0.000149,2]
[330468412,1719462632415,-331.11696894,0.000149,2]
[330468413,1719462632424,-181.50684928,0.0001499,2]
[330468414,1719462632433,-224.99,0.00014999,2]
[330468415,1719462632442,-8183.24008893,0.00015,2]
[330468416,1719462632453,-24675.14347884,0.00015,2]
[330468417,1719462632497,-11454.38732188,0.00015,2]
[330468418,1719462632508,-562.43544538,0.00015,2]
[330468419,1719462632520,-1094.89027509,0.00015,2]
[330468420,1719462632530,-367.14230676,0.00015,2]
[330468421,1719462632551,-150.0,0.00013787,2]
[330468422,1719462632560,-5823.18862995,0.00015,2]
[330468423,1719462632571,-1671.1711544,0.00015,2]
[330468426,1719462637879,-638.55963103,0.00013787,2]
[330468430,1719462637954,-1028.38356854,0.00013787,2]
[330468434,1719462638025,-514.78208379,0.00013787,2]
[330468435,1719462638046,-21698.27471664,0.00013787,2]
[330468436,1719462638059,-520.64721014,0.00014899,2]
[330468437,1719462638069,-167460.28153176,0.00015,2]
[330468446,1719462641285,-2424.84669876,0.00015,2]
[330468473,1719462647827,-181.50684929,0.0001499,2]
[330468474,1719462647836,-5962.77803071,0.00015,2]
[330468475,1719462647881,-2547.63658234,0.00015,2]
[330468476,1719462647894,-7156.20762522,0.00015,2]
[330468477,1719462647906,-746.23574275,0.00015,2]
[330468483,1719462835700,5906.49904209,9e-05,2]
[330468484,1719462836079,159.26174028,0.00010999,2]
[330468487,1719462871874,14328.72565259,6.94e-05,2]
[330468489,1719462903206,440.30964725,6.94e-05,2]
[330468490,1719462913933,4623.43164178,6.94e-05,2]
[330468491,1719462952187,155.94623879,6.94e-05,2]
[330468492,1719462955358,19813.39655712,6.94e-05,2]
[330468494,1719462984063,4042.57994754,6.94e-05,2]
[330468495,1719462984243,155.0,6.94e-05,2]
[330468496,1719463001019,19813.39655712,8.412e-05,2]
[330468498,1719463012948,4623.43164178,6.94e-05,2]
[330468500,1719463019981,167.0936673,6.94e-05,2]
[330468501,1719463037789,206.79362037,8.412e-05,2]
[330468502,1719463051091,19813.39655712,8.412e-05,2]
[330468503,1719463053486,2387.14608756,8.412e-05,2]
[330468504,1719463057440,155.0,0.00010196,2]
[330468505,1719463066706,529.89,0.00010115,2]
[330468506,1719463072595,332.01755418,0.00010196,2]
[330468507,1719463096434,155.0,0.00010196,2]
[330468508,1719463152604,552.51494431,0.00010196,2]
[330468509,1719463181086,181.06228476,0.00010196,2]
[330468510,1719463196086,181.06228476,0.00010196,2]
[330468511,1719463245573,19813.39655712,0.00010196,2]
[330468512,1719463291981,155.0,0.00010196,2]
[330468513,1719463334759,19813.39655712,0.00010196,2]
[330468514,1719463380942,296.20448438,0.00010196,2]
[330468515,1719463410467,360107.0,0.00010998,2]
[330468516,1719463424546,1336.77226207,0.00010196,2]
[330468517,1719463459642,-300.0,0.00011098,2]
[330468518,1719463459664,-9700.0,0.00011099,2]
[330468519,1719463460366,-886.3938,0.00011099,2]
[330468520,1719463460389,-157.09861622,0.00011197,2]
[330468521,1719463460415,-8956.50758378,0.00011199,2]
[330468522,1719463460804,-10000.0,0.00011199,2]
[330468523,1719463461199,-10000.0,0.00011199,2]
[330468524,1719463461728,-10000.0,0.00011199,2]
[330468525,1719463462259,-10000.0,0.00011199,2]
[330468526,1719463462785,-10000.0,0.00011199,2]
[330468527,1719463463306,-10000.0,0.00011199,2]
[330468528,1719463464309,-10000.0,0.00011199,2]
[330468529,1719463465561,-10000.0,0.00011199,2]
[330468530,1719463473732,-3089.0,0.00011199,2]
[330468531,1719463503341,-257.22222615,0.00011143,2]
[330468532,1719463503364,-9742.77777385,0.00011199,2]
[330468533,1719463503873,-10000.0,0.00011199,2]
[330468534,1719463504506,-10000.0,0.00011199,2]
[330468535,1719463505316,-10000.0,0.00011199,2]
[330468536,1719463505919,-10000.0,0.00011199,2]
[330468537,1719463506666,-10000.0,0.00011199,2]
[330468538,1719463508019,-10000.0,0.00011199,2]
[330468539,1719463508859,-10000.0,0.00011199,2]
[330468540,1719463679059,503.39,0.00010067,2]
[330468541,1719463718022,300.25025617,0.00010067,2]
[330468542,1719463722084,20310.318509,0.00010067,2]
[330468543,1719463724644,200.63890203,0.00010067,2]
[330468544,1719463726978,300.76377985,0.00010067,2]
[330468546,1719463828124,6666.92380263,0.00010067,2]
[330468547,1719463830529,300.25025617,0.00010067,2]
[330468564,1719463832228,-388.75153222,0.00011042,2]
[330468565,1719463832239,-4843.30926104,0.00011042,2]
[330468566,1719463832251,-1861.48710174,0.00011042,2]
[330468567,1719463832260,-300.0,0.00011097,2]
[330468568,1719463832270,-2484.60578707,0.00011098,2]
[330468569,1719463832282,-971.11180087,0.00011098,2]
[330468570,1719463832298,-2140.29105315,0.00011098,2]
[330468571,1719463832307,-157.79974632,0.00011098,2]
[330468572,1719463832316,-155.36858825,0.00011197,2]
[330468573,1719463832326,-1270.53245904,0.00011199,2]
[330468574,1719463832337,-3684.37699152,0.00011199,2]
[330468575,1719463832347,-19611.10400098,0.00011199,2]
[330468576,1719463832356,-3584.33055562,0.000112,2]
[330468577,1719463832367,-250.0,0.00011493,2]
[330468578,1719463832376,-250.0,0.00011512,2]
[330468579,1719463832385,-299.99,0.00011708,2]
[330468580,1719463832395,-2829.81,0.00011708,2]
[330468581,1719463832404,-1000.0,0.00011712,2]
[330468582,1719463832414,-23890.0,0.00011762,2]
[330468583,1719463832425,-2360.32,0.00011762,2]
[330468584,1719463832434,-24934.19,0.00011773,2]
[330468585,1719463832444,-150.0,0.00011788,2]
[330468586,1719463832455,-200.0,0.00011788,2]
[330468587,1719463832466,-21357.28275206,0.000118,2]
[330468588,1719463832475,-12586.23,0.00012034,2]
[330468589,1719463832484,-1852.42,0.00012042,2]
[330468590,1719463832493,-155.06,0.00012082,2]
[330468591,1719463832503,-240.5,0.00012171,2]
[330468592,1719463832513,-420.0,0.00012193,2]
[330468593,1719463832526,-240.5,0.00012204,2]
[330468594,1719463832537,-240.5,0.00012237,2]
[330468595,1719463832549,-240.5,0.00012271,2]
[330468596,1719463832559,-155.38427663,0.00012302,2]
[330468597,1719463832569,-545.59859068,0.00012302,2]
[330468598,1719463832578,-240.5,0.00012304,2]
[330468600,1719463832588,-503.39,0.00012331,2]
[330468602,1719463832598,-240.5,0.00012337,2]
[330468605,1719463832609,-240.5,0.00012371,2]
[330468608,1719463832617,-240.5,0.00012404,2]
[330468610,1719463832626,-240.5,0.00012438,2]
[330468613,1719463832636,-240.5,0.00012471,2]
[330468616,1719463832645,-240.5,0.00012504,2]
[330468618,1719463832654,-240.5,0.00012538,2]
[330468620,1719463832663,-240.5,0.00012571,2]
[330468623,1719463832672,-240.5,0.00012604,2]
[330468626,1719463832682,-240.5,0.00012638,2]
[330468629,1719463832691,-240.5,0.00012671,2]
[330468631,1719463832700,-240.5,0.00012704,2]
[330468634,1719463832710,-172.99,0.0001272,2]
[330468636,1719463832722,-240.5,0.00012738,2]
[330468640,1719463832734,-240.5,0.00012771,2]
[330468642,1719463832745,-240.5,0.00012805,2]
[330468644,1719463832754,-322.0,0.00013086,2]
[330468645,1719463832763,-663.56579088,0.00013128,2]
[330468648,1719463832774,-1000.0,0.00013176,2]
[330468650,1719463832783,-4897.9805,0.00013213,2]
[330468652,1719463832792,-10500.5398008,0.00013303,2]
[330468654,1719463832801,-587.0,0.00013398,2]
[330468656,1719463832811,-854.55128571,0.00013472,2]
[330468658,1719463832821,-155.06,0.00013592,2]
[330468700,1719463833188,-1072.61,0.00013699,2]
[330468704,1719463833219,-200.0,0.00013699,2]
[330468706,1719463833228,-1114.76,0.00013699,5]
[330468708,1719463833238,-500.0,0.00013699,2]
[330468710,1719463833247,-707.08,0.00013699,2]
[330468711,1719463833256,-6272.18860185,0.0001379,2]
[330468712,1719463833265,-2699.18837664,0.00013799,2]
[330468713,1719463833274,-2699.18837656,0.00013799,2]
[330468714,1719463833283,-6957.23871223,0.0001387,2]
[330468715,1719463833293,-220.18,0.0001389,3]
[330468716,1719463833302,-87224.71953851,0.00013899,2]
[330468717,1719463833315,-36924.73642334,0.00013899,2]
[330468718,1719463833326,-30264.99403815,0.00013899,2]
[330468719,1719463833336,-172.59072584,0.00013899,2]
[330468720,1719463833346,-2434.72755024,0.00013899,2]
[330468721,1719463833356,-218.74996031,0.00013899,2]
[330468722,1719463833365,-331.11696894,0.00013899,2]
[330468723,1719463833375,-547792.63267388,0.00013999,2]
[330468724,1719463833384,-151.0,0.00013999,2]
[330468725,1719463833394,-151.0,0.00013999,2]
[330468726,1719463833404,-741.379683,0.00013999,2]
[330468727,1719463833416,-262.3791,0.00013999,2]
[330468728,1719463833425,-262.3791,0.00013999,2]
[330468729,1719463833434,-151.0,0.00013999,2]
[330468730,1719463833446,-218.951108,0.00013999,2]
[330468731,1719463833456,-218.951108,0.00013999,2]
[330468732,1719463833468,-151.0,0.00013999,2]
[330468733,1719463833477,-151.0,0.00013999,2]
[330468734,1719463833486,-160.506415,0.00013999,2]
[330468735,1719463833495,-160.506415,0.00013999,2]
[330468736,1719463833504,-186.889402,0.00013999,2]
[330468737,1719463833514,-186.889402,0.00013999,2]
[330468738,1719463833525,-151.0,0.00013999,2]
[330468739,1719463833535,-151.0,0.00013999,2]
[330468740,1719463833546,-151.0,0.00013999,2]
[330468741,1719463833556,-152.233798,0.00013999,2]
[330468742,1719463833566,-167.783691,0.00013999,2]
[330468743,1719463833575,-463.758189,0.00013999,2]
[330468744,1719463833585,-151.0,0.00013999,2]
[330468745,1719463833594,-641.519696,0.00013999,2]
[330468746,1719463833603,-151.0,0.00013999,2]
[330468747,1719463833612,-463.758189,0.00013999,2]
[330468748,1719463833622,-641.519696,0.00013999,2]
[330468749,1719463833631,-151.0,0.00013999,2]
[330468750,1719463833641,-556.752046,0.00013999,2]
[330468751,1719463833650,-151.0,0.00013999,2]
[330468752,1719463833659,-556.752046,0.00013999,2]
[330468753,1719463833669,-684.174901,0.00013999,2]
[330468754,1719463833678,-684.174901,0.00013999,2]
[330468755,1719463833687,-151.0,0.00013999,2]
[330468756,1719463833697,-151.0,0.00013999,2]
[330468757,1719463833706,-151.0,0.00013999,2]
[330468758,1719463833717,-151.0,0.00013999,2]
[330468759,1719463833726,-151.0,0.00013999,2]
[330468760,1719463833736,-151.0,0.00013999,2]
[330468761,1719463833749,-151.0,0.00013999,2]
[330468762,1719463833759,-151.0,0.00013999,2]
[330468763,1719463833768,-151.0,0.00013999,2]
[330468764,1719463833778,-151.0,0.00013999,2]
[330468765,1719463833788,-151.0,0.00013999,2]
[330468766,1719463833798,-151.0,0.00013999,2]
[330468767,1719463833806,-151.0,0.00013999,2]
[330468768,1719463833816,-151.0,0.00013999,2]
[330468769,1719463833827,-157.979581,0.00013999,2]
[330468770,1719463833837,-151.0,0.00013999,2]
[330468771,1719463833846,-151.0,0.00013999,2]
[330468772,1719463833855,-97.99755271,0.00013999,2]
[330468773,1719463834109,-0.28720715,0.00013999,2]
[330468774,1719463834128,-154.83908514,0.00013999,2]
[330468775,1719463834139,-253.123845,0.00013999,2]
[330468776,1719463834148,-229.043539,0.00013999,2]
[330468777,1719463834157,-229.043539,0.00013999,2]
[330468778,1719463834167,-101.77883754,0.00013999,2]
[330468779,1719463838162,-19611.10400098,0.00011199,2]
[330468780,1719463838172,-57.46166846,0.00013999,2]
[330468781,1719463838182,-349922.70892314,0.00014,2]
[330468782,1719463838194,-297040.47233599,0.00014,2]
[330468785,1719463840295,-6152.0796,0.00014,2]
[330468844,1719463846472,-27179.58949181,0.00014,2]
[330468845,1719464781180,488.72,0.00010562,2]
[330468847,1719464840879,19813.39655712,0.00010562,2]
[330468848,1719464846360,199.15546652,0.00010562,2]
[330468849,1719464861214,181.06228476,0.00010562,2]
[330468850,1719464865774,552.49402152,0.00010562,2]
[330468851,1719464866188,300.25025617,0.00010562,2]
[330468852,1719464877331,155.32991129,0.00010562,2]
[330468853,1719464944638,18208.78397418,0.00010562,2]
[330468854,1719464948735,614.49,0.00010959,2]
[330468855,1719464963862,300.25025617,0.00010562,2]
[330468856,1719464966209,280.56124716,0.00010562,2]
[330468857,1719464978844,300.25025617,0.00010562,2]
[330468894,1719465032093,-339.85299,0.00011874,2]
[330468897,1719465032124,-419.33701,0.00011874,2]
[330468899,1719465032134,-2000.0,0.0001188,3]
[330468900,1719465032143,-300.0,0.00011964,2]
[330468901,1719465032153,-2884.19989901,0.00011965,2]
[330468902,1719465032164,-789.29286824,0.00011965,2]
[330468903,1719465032175,-20216.50723275,0.00011965,2]
[330468904,1719465032188,-169.93519535,0.00012273,2]
[330468905,1719465032198,-155.06,0.00012273,2]
[330468906,1719465032207,-1641.75,0.00012286,2]
[330468907,1719465032216,-239.12,0.00012365,2]
[330468908,1719465032227,-150.99,0.00012399,2]
[330468909,1719465032235,-239.12,0.00012399,2]
[330468910,1719465032246,-160.27755322,0.0001241,2]
[330468911,1719465032254,-239.12,0.00012433,2]
[330468912,1719465032263,-239.12,0.00012467,2]
[330468913,1719465032272,-239.12,0.00012501,2]
[330468914,1719465032281,-706.37,0.0001251,2]
[330468915,1719465032290,-160.27755311,0.00012512,2]
[330468916,1719465032299,-239.12,0.00012535,2]
[330468917,1719465032308,-239.12,0.00012569,2]
[330468918,1719465032317,-239.12,0.00012603,2]
[330468919,1719465032326,-150.0,0.00012608,2]
[330468920,1719465032335,-1076.88,0.00012609,2]
[330468921,1719465032344,-160.27755311,0.00012613,2]
[330468922,1719465032353,-199.2107605,0.00012637,2]
[330468923,1719465032365,-39.9092395,0.00012637,2]
[330468924,1719465032374,-500.0,0.00012656,2]
[330468925,1719465032383,-250.0,0.0001267,2]
[330468926,1719465032393,-1000.0,0.0001267,2]
[330468927,1719465032402,-239.12,0.00012671,2]
[330468928,1719465032413,-239.12,0.00012705,2]